fUSD/lending_fUSD_20260606
["ID","MTS","AMOUNT","RATE_DAILY","PERIOD"]
[424264941,1780708271000,-238.116691,0.00037808,30]
[424264947,1780708271000,-723.193245,0.00037808,30]
[424264946,1780708271000,-1174.20853,0.00037808,30]
[424264942,1780708271000,-400.0,0.00037808,30]
[424264951,1780708271000,-1174.20853,0.00037808,30]
[424264944,1780708271000,-400.0,0.00037808,30]
[424264937,1780708271000,-1219.584576,0.00037808,30]
[424264945,1780708271000,-400.0,0.00037808,30]
[424264953,1780708271000,-1219.584576,0.00037808,30]
[424264954,1780708271000,-1174.20853,0.00037808,30]
[424264955,1780708271000,-1219.584576,0.00037808,30]
[424264956,1780708271000,-723.193245,0.00037808,30]
[424264957,1780708271000,-1174.20853,0.00037808,30]
[424264959,1780708271000,-1219.584576,0.00037808,30]
[424264960,1780708271000,-1174.20853,0.00037808,30]
[424264963,1780708271000,-1174.20853,0.00037808,30]
[424264961,1780708271000,-723.193245,0.00037808,30]
[424264962,1780708271000,-1219.584576,0.00037808,30]
[424264964,1780708271000,-723.193245,0.00037808,30]
[424264905,1780708271000,-238.116691,0.00037808,30]
[424264952,1780708271000,-723.193245,0.00037808,30]
[424264938,1780708271000,-238.116691,0.00037808,30]
[424264943,1780708271000,-1219.584576,0.00037808,30]
[424264933,1780708271000,-1174.20853,0.00037808,30]
[424264909,1780708271000,-400.0,0.00037808,30]
[424264936,1780708271000,-1174.20853,0.00037808,30]
[424264907,1780708271000,-400.0,0.00037808,30]
[424264911,1780708271000,-238.116691,0.00037808,30]
[424264908,1780708271000,-238.116691,0.00037808,30]
[424264912,1780708271000,-400.0,0.00037808,30]
[424264914,1780708271000,-400.0,0.00037808,30]
[424264917,1780708271000,-238.116691,0.00037808,30]
[424264924,1780708271000,-1219.584576,0.00037808,30]
[424264915,1780708271000,-400.0,0.00037808,30]
[424264925,1780708271000,-1219.584576,0.00037808,30]
[424264913,1780708271000,-238.116691,0.00037808,30]
[424264920,1780708271000,-238.116691,0.00037808,30]
[424264916,1780708271000,-151.0,0.00037808,30]
[424264931,1780708271000,-238.116691,0.00037808,30]
[424264918,1780708271000,-400.0,0.00037808,30]
[424264919,1780708271000,-151.0,0.00037808,30]
[424264923,1780708271000,-238.116691,0.00037808,30]
[424264921,1780708271000,-400.0,0.00037808,30]
[424264926,1780708271000,-238.116691,0.00037808,30]
[424264929,1780708271000,-400.0,0.00037808,30]
[424264928,1780708271000,-1219.584576,0.00037808,30]
[424264930,1780708271000,-253.362122,0.00037808,30]
[424264935,1780708271000,-400.0,0.00037808,30]
[424264922,1780708271000,-151.0,0.00037808,30]
[424264932,1780708271000,-400.0,0.00037808,30]
[424264934,1780708271000,-238.116691,0.00037808,30]
[424265005,1780708272000,-166.396231,0.00037808,30]
[424265007,1780708272000,-151.0,0.00037808,30]
[424264999,1780708272000,-166.396231,0.00037808,30]
[424265012,1780708272000,-1543.31254,0.00037808,7]
[424265004,1780708272000,-166.396231,0.00037808,30]
[424265003,1780708272000,-166.396231,0.00037808,30]
[424264992,1780708272000,-151.0,0.00037808,30]
[424265002,1780708272000,-166.396231,0.00037808,30]
[424264998,1780708272000,-166.396231,0.00037808,30]
[424264997,1780708272000,-166.396231,0.00037808,30]
[424265009,1780708272000,-151.0,0.00037808,30]
[424265013,1780708272000,-1543.31254,0.00037808,7]
[424265008,1780708272000,-151.0,0.00037808,30]
[424265020,1780708272000,-181.313747,0.00037808,30]
[424265010,1780708272000,-1543.31254,0.00037808,7]
[424265019,1780708272000,-1543.31254,0.00037808,7]
[424265015,1780708272000,-1543.31254,0.00037808,7]
[424265025,1780708272000,-1091.871311,0.00037808,30]
[424265026,1780708272000,-181.313747,0.00037808,30]
[424265027,1780708272000,-1091.871311,0.00037808,30]
[424265014,1780708272000,-1543.31254,0.00037808,7]
[424265023,1780708272000,-1091.871311,0.00037808,30]
[424265024,1780708272000,-181.313747,0.00037808,30]
[424265016,1780708272000,-1091.871311,0.00037808,30]
[424265017,1780708272000,-1091.871311,0.00037808,30]
[424265022,1780708272000,-181.313747,0.00037808,30]
[424264996,1780708272000,-166.396231,0.00037808,30]
[424265006,1780708272000,-151.0,0.00037808,30]
[424264995,1780708272000,-166.396231,0.00037808,30]
[424264974,1780708272000,-847.790271,0.00037808,30]
[424264994,1780708272000,-166.396231,0.00037808,30]
[424264965,1780708272000,-1174.20853,0.00037808,30]
[424264975,1780708272000,-151.0,0.00037808,30]
[424264966,1780708272000,-723.193245,0.00037808,30]
[424264967,1780708272000,-1174.20853,0.00037808,30]
[424264976,1780708272000,-847.790271,0.00037808,30]
[424264971,1780708272000,-723.193245,0.00037808,30]
[424264972,1780708272000,-723.193245,0.00037808,30]
[424264968,1780708272000,-1174.20853,0.00037808,30]
[424264973,1780708272000,-723.193245,0.00037808,30]
[424264969,1780708272000,-723.193245,0.00037808,30]
[424264970,1780708272000,-1219.584576,0.00037808,30]
[424264978,1780708272000,-847.790271,0.00037808,30]
[424264988,1780708272000,-847.790271,0.00037808,30]
[424264993,1780708272000,-222.301647,0.00037808,30]
[424264980,1780708272000,-847.790271,0.00037808,30]
[424264979,1780708272000,-847.790271,0.00037808,30]
[424264977,1780708272000,-283.676032,0.00037808,30]
[424264986,1780708272000,-847.790271,0.00037808,30]
[424264987,1780708272000,-847.790271,0.00037808,30]
[424264982,1780708272000,-847.790271,0.00037808,30]
[424264983,1780708272000,-847.790271,0.00037808,30]
[424264985,1780708272000,-847.790271,0.00037808,30]
[424264984,1780708272000,-160.835098,0.00037808,30]
[424264990,1780708272000,-151.0,0.00037808,30]
[424265000,1780708272000,-166.396231,0.00037808,30]
[424265001,1780708272000,-166.396231,0.00037808,30]
[424264989,1780708272000,-151.0,0.00037808,30]
[424264991,1780708272000,-151.0,0.00037808,30]
[424264981,1780708272000,-847.790271,0.00037808,30]
[424265018,1780708272000,-1543.31254,0.00037808,7]
[424265011,1780708272000,-1543.31254,0.00037808,7]
[424265028,1780708272000,-165.608309,0.00037808,30]
[424265061,1780708272000,-1638.759717,0.00037808,30]
[424265060,1780708272000,-151.0,0.00037808,30]
[424265062,1780708272000,-151.0,0.00037808,30]
[424265063,1780708272000,-203.294943,0.00037808,30]
[424265077,1780708272000,-151.0,0.00037808,30]
[424265065,1780708272000,-520.534854,0.00037808,30]
[424265076,1780708272000,-520.534854,0.00037808,30]
[424265066,1780708272000,-520.534854,0.00037808,30]
[424265067,1780708272000,-1638.759717,0.00037808,30]
[424265068,1780708272000,-1638.759717,0.00037808,30]
[424265069,1780708272000,-520.534854,0.00037808,30]
[424265075,1780708272000,-520.534854,0.00037808,30]
[424265074,1780708272000,-520.534854,0.00037808,30]
[424265064,1780708272000,-1638.759717,0.00037808,30]
[424265072,1780708272000,-1638.759717,0.00037808,30]
[424265071,1780708272000,-1638.759717,0.00037808,30]
[424265073,1780708272000,-520.534854,0.00037808,30]
[424265080,1780708272000,-151.0,0.00037808,30]
[424265078,1780708272000,-151.0,0.00037808,30]
[424265086,1780708272000,-732.063316,0.00037808,30]
[424265081,1780708272000,-151.0,0.00037808,30]
[424265087,1780708272000,-732.063316,0.00037808,30]
[424265085,1780708272000,-732.063316,0.00037808,30]
[424265082,1780708272000,-151.0,0.00037808,30]
[424265083,1780708272000,-732.063316,0.00037808,30]
[424265079,1780708272000,-151.0,0.00037808,30]
[424265088,1780708272000,-732.063316,0.00037808,30]
[424265021,1780708272000,-1091.871311,0.00037808,30]
[424265070,1780708272000,-520.534854,0.00037808,30]
[424265059,1780708272000,-532.737278,0.00037808,30]
[424265084,1780708272000,-732.063316,0.00037808,30]
[424265053,1780708272000,-151.0,0.00037808,30]
[424265033,1780708272000,-151.0,0.00037808,30]
[424265031,1780708272000,-151.0,0.00037808,30]
[424265032,1780708272000,-151.0,0.00037808,30]
[424265029,1780708272000,-532.737278,0.00037808,30]
[424265030,1780708272000,-532.737278,0.00037808,30]
[424265036,1780708272000,-1091.871311,0.00037808,30]
[424265034,1780708272000,-299.447072,0.00037808,30]
[424265037,1780708272000,-181.313747,0.00037808,30]
[424265056,1780708272000,-532.737278,0.00037808,30]
[424265038,1780708272000,-151.0,0.00037808,30]
[424265039,1780708272000,-1091.871311,0.00037808,30]
[424265041,1780708272000,-151.0,0.00037808,30]
[424265050,1780708272000,-532.737278,0.00037808,30]
[424265049,1780708272000,-151.0,0.00037808,30]
[424265035,1780708272000,-181.313747,0.00037808,30]
[424265048,1780708272000,-532.737278,0.00037808,30]
[424265058,1780708272000,-151.0,0.00037808,30]
[424265040,1780708272000,-532.737278,0.00037808,30]
[424265057,1780708272000,-151.0,0.00037808,30]
[424265055,1780708272000,-151.0,0.00037808,30]
[424265052,1780708272000,-1638.759717,0.00037808,30]
[424265051,1780708272000,-151.0,0.00037808,30]
[424265054,1780708272000,-1638.759717,0.00037808,30]
[424265043,1780708272000,-151.0,0.00037808,30]
[424265046,1780708272000,-181.313747,0.00037808,30]
[424265042,1780708272000,-532.737278,0.00037808,30]
[424265047,1780708272000,-151.0,0.00037808,30]
[424265044,1780708272000,-151.0,0.00037808,30]
[424265045,1780708272000,-181.313747,0.00037808,30]
[424265125,1780708273000,-3962.057198,0.00037808,30]
[424265132,1780708273000,-151.0,0.00037808,30]
[424265131,1780708273000,-151.0,0.00037808,30]
[424265128,1780708273000,-196.858265,0.00037808,30]
[424265124,1780708273000,-151.0,0.00037808,30]
[424265118,1780708273000,-151.0,0.00037808,30]
[424265123,1780708273000,-151.0,0.00037808,30]
[424265121,1780708273000,-196.858265,0.00037808,30]
[424265119,1780708273000,-196.858265,0.00037808,30]
[424265120,1780708273000,-196.858265,0.00037808,30]
[424265122,1780708273000,-151.0,0.00037808,30]
[424265135,1780708273000,-196.858265,0.00037808,30]
[424265147,1780708273000,-3962.057198,0.00037808,30]
[424265136,1780708273000,-151.0,0.00037808,30]
[424265133,1780708273000,-151.0,0.00037808,30]
[424265137,1780708273000,-3962.057198,0.00037808,30]
[424265139,1780708273000,-151.0,0.00037808,30]
[424265140,1780708273000,-3962.057198,0.00037808,30]
[424265138,1780708273000,-196.858265,0.00037808,30]
[424265129,1780708273000,-196.858265,0.00037808,30]
[424265142,1780708273000,-3962.057198,0.00037808,30]
[424265152,1780708273000,-196.858265,0.00037808,30]
[424265153,1780708273000,-151.0,0.00037808,30]
[424265150,1780708273000,-196.858265,0.00037808,30]
[424265148,1780708273000,-151.0,0.00037808,30]
[424265117,1780708273000,-151.0,0.00037808,30]
[424265134,1780708273000,-154.637873,0.00037808,30]
[424265115,1780708273000,-249.099389,0.00037808,30]
[424265106,1780708273000,-470.75516,0.00037808,30]
[424265126,1780708273000,-196.858265,0.00037808,30]
[424265141,1780708273000,-196.858265,0.00037808,30]
[424265089,1780708273000,-732.063316,0.00037808,30]
[424265091,1780708273000,-153.569121,0.00037808,30]
[424265101,1780708273000,-249.099389,0.00037808,30]
[424265100,1780708273000,-470.75516,0.00037808,30]
[424265090,1780708273000,-732.063316,0.00037808,30]
[424265094,1780708273000,-470.75516,0.00037808,30]
[424265092,1780708273000,-470.75516,0.00037808,30]
[424265093,1780708273000,-470.75516,0.00037808,30]
[424265098,1780708273000,-249.099389,0.00037808,30]
[424265096,1780708273000,-249.099389,0.00037808,30]
[424265095,1780708273000,-249.099389,0.00037808,30]
[424265099,1780708273000,-470.75516,0.00037808,30]
[424265097,1780708273000,-470.75516,0.00037808,30]
[424265102,1780708273000,-249.099389,0.00037808,30]
[424265104,1780708273000,-249.099389,0.00037808,30]
[424265112,1780708273000,-470.75516,0.00037808,30]
[424265111,1780708273000,-249.099389,0.00037808,30]
[424265105,1780708273000,-470.75516,0.00037808,30]
[424265107,1780708273000,-249.099389,0.00037808,30]
[424265114,1780708273000,-249.099389,0.00037808,30]
[424265113,1780708273000,-249.099389,0.00037808,30]
[424265103,1780708273000,-470.75516,0.00037808,30]
[424265109,1780708273000,-249.099389,0.00037808,30]
[424265110,1780708273000,-470.75516,0.00037808,30]
[424265108,1780708273000,-470.75516,0.00037808,30]
[424265116,1780708273000,-151.0,0.00037808,30]
[424265127,1780708273000,-3962.057198,0.00037808,30]
[424265143,1780708273000,-151.0,0.00037808,30]
[424265130,1780708273000,-3962.057198,0.00037808,30]
[424265145,1780708273000,-196.858265,0.00037808,30]
[424265181,1780708273000,-150.0,0.00037957,120]
[424265187,1780708273000,-2568.0,0.00038,120]
[424265185,1780708273000,-1000.0,0.00038,120]
[424265182,1780708273000,-400.0,0.0003797,2]
[424265188,1780708273000,-764.0,0.00038,30]
[424265183,1780708273000,-150.0,0.00037996,120]
[424265186,1780708273000,-1000.0,0.00038,120]
[424265190,1780708273000,-718.0,0.00038,2]
[424265200,1780708273000,-1061.0,0.00038,7]
[424265189,1780708273000,-166.66227481,0.00038,120]
[424265192,1780708273000,-151.0,0.00038,120]
[424265191,1780708273000,-469.0,0.00038,30]
[424265193,1780708273000,-192.605402,0.00038,20]
[424265196,1780708273000,-850.0,0.00038,2]
[424265199,1780708273000,-405.0,0.00038,30]
[424265194,1780708273000,-500.0,0.00038,120]
[424265195,1780708273000,-1369.62890625,0.00038,2]
[424265197,1780708273000,-151.0,0.00038,60]
[424265201,1780708273000,-395.0,0.00038,30]
[424265203,1780708273000,-220.0,0.00038,30]
[424265204,1780708273000,-172.0,0.00038,30]
[424265206,1780708273000,-5000.0,0.00038014,7]
[424265205,1780708273000,-1000.0,0.0003801,60]
[424265208,1780708273000,-12969.11848382,0.00038021,2]
[424265207,1780708273000,-2321.0,0.00038017,11]
[424265202,1780708273000,-405.0,0.00038,30]
[424265151,1780708273000,-3962.057198,0.00037808,30]
[424265184,1780708273000,-190.57559559,0.00037999,2]
[424265180,1780708273000,-150.0,0.00037957,120]
[424265198,1780708273000,-1668.57,0.00038,38]
[424265179,1780708273000,-150.0,0.00037957,120]
[424265144,1780708273000,-151.0,0.00037808,30]
[424265178,1780708273000,-1075.96,0.00037954,120]
[424265149,1780708273000,-151.0,0.00037808,30]
[424265146,1780708273000,-151.0,0.00037808,30]
[424265154,1780708273000,-3962.057198,0.00037808,30]
[424265157,1780708273000,-151.0,0.00037808,30]
[424265161,1780708273000,-409.0,0.00037812,2]
[424265158,1780708273000,-3962.057198,0.00037808,30]
[424265156,1780708273000,-248.189265,0.00037808,30]
[424265155,1780708273000,-151.0,0.00037808,30]
[424265163,1780708273000,-1250.73,0.00037822,2]
[424265165,1780708273000,-1358.0,0.00037824,2]
[424265164,1780708273000,-1358.0,0.00037824,2]
[424265160,1780708273000,-3962.057198,0.00037808,30]
[424265159,1780708273000,-151.0,0.00037808,30]
[424265174,1780708273000,-150.0,0.00037918,120]
[424265177,1780708273000,-1075.96,0.00037954,30]
[424265162,1780708273000,-641.0,0.00037816,13]
[424265168,1780708273000,-291.15064701,0.00037838,10]
[424265170,1780708273000,-164.0,0.00037843,11]
[424265171,1780708273000,-1592.0,0.00037843,11]
[424265166,1780708273000,-164.0,0.00037834,11]
[424265172,1780708273000,-388.3789633,0.00037875,2]
[424265169,1780708273000,-150.0,0.0003784,120]
[424265209,1780708273000,-150.0,0.00038034,120]
[424265176,1780708273000,-5000.0,0.00037954,7]
[424265175,1780708273000,-5000.0,0.00037954,2]
[424265167,1780708273000,-150.0,0.00037837,7]
[424265173,1780708273000,-150.0,0.00037879,120]
[424265230,1780708274000,-500.0,0.00038049,2]
[424265228,1780708274000,-500.0,0.00038049,2]
[424265225,1780708274000,-500.0,0.00038049,2]
[424265229,1780708274000,-500.0,0.00038049,2]
[424265231,1780708274000,-500.0,0.00038049,2]
[424265237,1780708274000,-217036.0,0.00038053,60]
[424265236,1780708274000,-303.5192132,0.00038049,2]
[424265233,1780708274000,-500.0,0.00038049,2]
[424265235,1780708274000,-500.0,0.00038049,2]
[424265234,1780708274000,-500.0,0.00038049,2]
[424265227,1780708274000,-500.0,0.00038049,2]
[424265232,1780708274000,-500.0,0.00038049,2]
[424265226,1780708274000,-500.0,0.00038049,2]
[424265211,1780708274000,-5000.0,0.00038036,7]
[424265222,1780708274000,-500.0,0.00038049,2]
[424265224,1780708274000,-500.0,0.00038049,2]
[424265221,1780708274000,-500.0,0.00038049,2]
[424265219,1780708274000,-500.0,0.00038049,2]
[424265220,1780708274000,-500.0,0.00038049,2]
[424265218,1780708274000,-500.0,0.00038049,2]
[424265217,1780708274000,-500.0,0.00038049,2]
[424265215,1780708274000,-500.0,0.00038049,2]
[424265216,1780708274000,-500.0,0.00038049,2]
[424265214,1780708274000,-1774.12734204,0.00038036,30]
[424265213,1780708274000,-150.0,0.00038036,30]
[424265212,1780708274000,-3091.59014075,0.00038036,30]
[424265210,1780708274000,-150.0,0.00038036,30]
[424265240,1780708274000,-208.84,0.0003809,93]
[424265223,1780708274000,-500.0,0.00038049,2]
[424265243,1780708274000,-1735.6048,0.000381,120]
[424265246,1780708274000,-5000.0,0.00038119,7]
[424265242,1780708274000,-2000.0,0.000381,48]
[424265239,1780708274000,-150.0,0.00038073,120]
[424265270,1780708274000,-969.95012,0.0003821,99]
[424265267,1780708274000,-436.38,0.00038206,2]
[424265269,1780708274000,-969.95011,0.0003821,99]
[424265268,1780708274000,-969.95011,0.0003821,99]
[424265265,1780708274000,-5000.0,0.00038202,7]
[424265264,1780708274000,-5000.0,0.00038202,2]
[424265260,1780708274000,-1032.2918016,0.000382,120]
[424265263,1780708274000,-2000.0,0.000382,52]
[424265262,1780708274000,-1351.91298453,0.000382,120]
[424265261,1780708274000,-1015.33755951,0.000382,120]
[424265259,1780708274000,-1000.0,0.000382,120]
[424265258,1780708274000,-150.0,0.0003819,120]
[424265256,1780708274000,-250.0,0.00038174,2]
[424265266,1780708274000,-1454.6,0.00038206,30]
[424265255,1780708274000,-250.0,0.00038174,2]
[424265241,1780708274000,-811.9428694,0.000381,33]
[424265254,1780708274000,-250.0,0.00038174,2]
[424265238,1780708274000,-7197.41,0.00038062,2]
[424265244,1780708274000,-1121.85257231,0.00038111,60]
[424265247,1780708274000,-4071.0,0.00038125,30]
[424265248,1780708274000,-2145.56006163,0.0003813,2]
[424265245,1780708274000,-150.0,0.00038112,120]
[424265249,1780708274000,-1632.03,0.0003813,120]
[424265251,1780708274000,-5000.0,0.00038174,2]
[424265253,1780708274000,-5000.0,0.00038174,2]
[424265252,1780708274000,-5000.0,0.00038174,2]
[424265257,1780708274000,-388.26406915,0.00038174,2]
[424265250,1780708274000,-150.0,0.00038151,120]
[424265293,1780708275000,-200.0,0.00038288,10]
[424265298,1780708275000,-261.473768,0.00038294,2]
[424265295,1780708275000,-7924.566263,0.00038294,2]
[424265294,1780708275000,-362385.3896236,0.00038294,2]
[424265296,1780708275000,-441052.1546254,0.00038294,2]
[424265297,1780708275000,-813905.4179828,0.00038294,2]
[424265299,1780708275000,-261.473768,0.00038294,2]
[424265300,1780708275000,-261.473768,0.00038294,2]
[424265308,1780708275000,-151.0,0.00038294,30]
[424265302,1780708275000,-151.0,0.00038294,30]
[424265304,1780708275000,-151.0,0.00038294,30]
[424265305,1780708275000,-406952.7089915,0.00038294,2]
[424265303,1780708275000,-151.0,0.00038294,30]
[424265306,1780708275000,-157.848844,0.00038294,30]
[424265307,1780708275000,-151.0,0.00038294,30]
[424265309,1780708275000,-151.0,0.00038294,30]
[424265291,1780708275000,-150.0,0.00038268,120]
[424265301,1780708275000,-261.473768,0.00038294,2]
[424265289,1780708275000,-1474.59855695,0.00038252,2]
[424265275,1780708275000,-205.36662216,0.0003823,50]
[424265290,1780708275000,-1552.42478854,0.00038252,2]
[424265272,1780708275000,-150.0,0.00038229,120]
[424265271,1780708275000,-969.95012,0.0003821,99]
[424265276,1780708275000,-684.55540721,0.0003823,10]
[424265274,1780708275000,-217036.0,0.0003823,60]
[424265273,1780708275000,-217035.0,0.0003823,60]
[424265279,1780708275000,-957.28984959,0.0003823,30]
[424265280,1780708275000,-5000.0,0.00038232,7]
[424265277,1780708275000,-479.18878505,0.0003823,30]
[424265278,1780708275000,-15119.24491622,0.0003823,10]
[424265282,1780708275000,-3449.37159578,0.00038252,2]
[424265286,1780708275000,-3270.63739639,0.00038252,2]
[424265285,1780708275000,-3765.88336791,0.00038252,2]
[424265287,1780708275000,-1384.53893023,0.00038252,2]
[424265281,1780708275000,-1473.21581737,0.00038252,2]
[424265310,1780708275000,-151.0,0.00038294,30]
[424265288,1780708275000,-1648.36196931,0.00038252,2]
[424265284,1780708275000,-1482.85642051,0.00038252,2]
[424265292,1780708275000,-5000.0,0.00038284,7]
[424265311,1780708275000,-151.0,0.00038294,30]
[424265283,1780708275000,-1485.41412397,0.00038252,2]
[424265312,1780708275000,-280.018418,0.00038294,30]
[424265343,1780708275000,-761.888544,0.00038294,30]
[424265344,1780708275000,-761.888544,0.00038294,30]
[424265345,1780708275000,-761.88854,0.00038294,30]
[424265337,1780708275000,-1773.172307,0.00038294,30]
[424265336,1780708275000,-1773.172301,0.00038294,30]
[424265339,1780708275000,-761.888544,0.00038294,30]
[424265338,1780708275000,-761.888544,0.00038294,30]
[424265340,1780708275000,-761.888544,0.00038294,30]
[424265341,1780708275000,-761.888544,0.00038294,30]
[424265342,1780708275000,-761.888544,0.00038294,30]
[424265349,1780708275000,-151.0,0.00038294,30]
[424265348,1780708275000,-151.0,0.00038294,30]
[424265351,1780708275000,-151.0,0.00038294,30]
[424265352,1780708275000,-151.0,0.00038294,30]
[424265350,1780708275000,-151.0,0.00038294,30]
[424265347,1780708275000,-151.0,0.00038294,30]
[424265313,1780708275000,-7857.3878297,0.00038294,2]
[424265334,1780708275000,-1773.172301,0.00038294,30]
[424265335,1780708275000,-1773.172301,0.00038294,30]
[424265346,1780708275000,-151.0,0.00038294,30]
[424265330,1780708275000,-1773.172301,0.00038294,30]
[424265331,1780708275000,-1773.172301,0.00038294,30]
[424265314,1780708275000,-286.546088,0.00038294,30]
[424265315,1780708275000,-286.546088,0.00038294,30]
[424265317,1780708275000,-286.546088,0.00038294,30]
[424265319,1780708275000,-615.619472,0.00038294,30]
[424265318,1780708275000,-615.619472,0.00038294,30]
[424265321,1780708275000,-615.619472,0.00038294,30]
[424265322,1780708275000,-161.395404,0.00038294,30]
[424265320,1780708275000,-615.619472,0.00038294,30]
[424265316,1780708275000,-286.546088,0.00038294,30]
[424265325,1780708275000,-161.395404,0.00038294,30]
[424265327,1780708275000,-151.0,0.00038294,30]
[424265326,1780708275000,-151.0,0.00038294,30]
[424265323,1780708275000,-161.395404,0.00038294,30]
[424265333,1780708275000,-1773.172301,0.00038294,30]
[424265329,1780708275000,-255.302784,0.00038294,30]
[424265332,1780708275000,-1773.172301,0.00038294,30]
[424265324,1780708275000,-161.395404,0.00038294,30]
[424265328,1780708275000,-151.0,0.00038294,30]
[424265391,1780708276000,-151.0,0.00038294,30]
[424265381,1780708276000,-871.633232,0.00038294,30]
[424265385,1780708276000,-151.0,0.00038294,30]
[424265386,1780708276000,-622.821157,0.00038294,30]
[424265390,1780708276000,-1322.17485,0.00038294,30]
[424265389,1780708276000,-622.821157,0.00038294,30]
[424265388,1780708276000,-151.0,0.00038294,30]
[424265384,1780708276000,-1322.17485,0.00038294,30]
[424265393,1780708276000,-1322.174841,0.00038294,30]
[424265382,1780708276000,-871.633232,0.00038294,30]
[424265387,1780708276000,-1322.17485,0.00038294,30]
[424265401,1780708276000,-2126.765351,0.00038294,30]
[424265404,1780708276000,-2126.765355,0.00038294,30]
[424265392,1780708276000,-276.530525,0.00038294,30]
[424265395,1780708276000,-622.821157,0.00038294,30]
[424265397,1780708276000,-622.821165,0.00038294,30]
[424265396,1780708276000,-276.530525,0.00038294,30]
[424265399,1780708276000,-276.53052,0.00038294,30]
[424265398,1780708276000,-276.530525,0.00038294,30]
[424265400,1780708276000,-2126.765351,0.00038294,30]
[424265403,1780708276000,-151.0,0.00038294,30]
[424265405,1780708276000,-342.280518,0.00038294,30]
[424265408,1780708276000,-219.903157,0.00038294,30]
[424265406,1780708276000,-151.0,0.00038294,30]
[424265383,1780708276000,-871.633223,0.00038294,30]
[424265402,1780708276000,-2126.765351,0.00038294,30]
[424265380,1780708276000,-871.633232,0.00038294,30]
[424265360,1780708276000,-194.091505,0.00038294,30]
[424265376,1780708276000,-432.548374,0.00038294,30]
[424265355,1780708276000,-151.0,0.00038294,30]
[424265356,1780708276000,-194.091505,0.00038294,30]
[424265353,1780708276000,-151.0,0.00038294,30]
[424265357,1780708276000,-194.091505,0.00038294,30]
[424265354,1780708276000,-151.0,0.00038294,30]
[424265359,1780708276000,-151.0,0.00038294,30]
[424265358,1780708276000,-151.0,0.00038294,30]
[424265407,1780708276000,-342.280518,0.00038294,30]
[424265361,1780708276000,-194.091505,0.00038294,30]
[424265369,1780708276000,-186.915139,0.00038294,30]
[424265368,1780708276000,-186.915139,0.00038294,30]
[424265362,1780708276000,-194.091505,0.00038294,30]
[424265364,1780708276000,-186.915139,0.00038294,30]
[424265366,1780708276000,-194.091505,0.00038294,30]
[424265363,1780708276000,-194.091505,0.00038294,30]
[424265367,1780708276000,-194.091501,0.00038294,30]
[424265365,1780708276000,-186.915139,0.00038294,30]
[424265370,1780708276000,-186.915139,0.00038294,30]
[424265374,1780708276000,-432.548374,0.00038294,30]
[424265372,1780708276000,-186.915139,0.00038294,30]
[424265373,1780708276000,-186.915144,0.00038294,30]
[424265379,1780708276000,-151.0,0.00038294,30]
[424265375,1780708276000,-432.548374,0.00038294,30]
[424265371,1780708276000,-186.915139,0.00038294,30]
[424265378,1780708276000,-157.210344,0.00038294,30]
[424265377,1780708276000,-432.548376,0.00038294,30]
[424265409,1780708276000,-342.280518,0.00038294,30]
[424265394,1780708276000,-151.0,0.00038294,30]
[424265410,1780708276000,-151.0,0.00038294,30]
[424265440,1780708276000,-151.0,0.00038294,30]
[424265442,1780708276000,-288.465417,0.00038294,30]
[424265443,1780708276000,-416.188353,0.00038294,30]